[Event "Live Chess"]
[Site "Chess.com"]
[Date "2023.05.21"]
[Round "-"]
[White "wot-not"]
[Black "HoarseyHorsey"]
[Result "0-1"]
[WhiteElo "1542"]
[BlackElo "1465"]
[TimeControl "300"]
[EndTime "4:44:58 PDT"]
[Termination "HoarseyHorsey won by resignation"]

1. d4 {[%clk 0:04:51.3]} 1... Nf6 {[%clk 0:04:58.6]} 2. c4 {[%clk 0:04:50.6]}
2... e6 {[%clk 0:04:57.4]} 3. Nc3 {[%clk 0:04:49.6]} 3... d5 {[%clk 0:04:57]} 4.
Bg5 {[%clk 0:04:48]} 4... Be7 {[%clk 0:04:54.6]} 5. Nf3 {[%clk 0:04:47.2]} 5...
O-O {[%clk 0:04:53.4]} 6. e3 {[%clk 0:04:46.7]} 6... c6 {[%clk 0:04:53]} 7. Rc1
{[%clk 0:04:44.8]} 7... Nbd7 {[%clk 0:04:52.4]} 8. h3 {[%clk 0:04:43.8]} 8... h6
{[%clk 0:04:50.9]} 9. Bh4 {[%clk 0:04:42]} 9... Re8 {[%clk 0:04:47.3]} 10. a3
{[%clk 0:04:40.3]} 10... Nf8 {[%clk 0:04:46.5]} 11. Bd3 {[%clk 0:04:37.3]} 11...
Ng6 {[%clk 0:04:45.3]} 12. Bg3 {[%clk 0:04:33.9]} 12... Bd6 {[%clk 0:04:36.7]}
13. Bxd6 {[%clk 0:04:30.4]} 13... Qxd6 {[%clk 0:04:35.8]} 14. c5 {[%clk
0:04:30.1]} 14... Qe7 {[%clk 0:04:31.8]} 15. O-O {[%clk 0:04:28.7]} 15... Nf8
{[%clk 0:04:29.8]} 16. Bb1 {[%clk 0:04:25.2]} 16... N8d7 {[%clk 0:04:28.4]} 17.
Qc2 {[%clk 0:04:24]} 17... e5 {[%clk 0:04:23.7]} 18. b4 {[%clk 0:04:03.4]} 18...
e4 {[%clk 0:04:21.7]} 19. Nh2 {[%clk 0:04:00.5]} 19... Nh7 {[%clk 0:04:13]} 20.
f3 {[%clk 0:03:58.8]} 20... Ndf6 {[%clk 0:04:11.1]} 21. fxe4 {[%clk 0:03:56.3]}
21... Nxe4 {[%clk 0:04:09.7]} 22. Nxe4 {[%clk 0:03:55.6]} 22... Qxe4 {[%clk
0:04:01.2]} 23. Qxe4 {[%clk 0:03:53.4]} 23... dxe4 {[%clk 0:03:59.3]} 24. Ng4
{[%clk 0:03:37]} 24... Bxg4 {[%clk 0:03:55.8]} 25. hxg4 {[%clk 0:03:35.6]} 25...
Ng5 {[%clk 0:03:54.2]} 26. Rf4 {[%clk 0:03:31.8]} 26... Re7 {[%clk 0:03:51.8]}
27. Rcf1 {[%clk 0:03:30.8]} 27... Rae8 {[%clk 0:03:46.2]} 28. Ba2 {[%clk
0:03:22]} 28... Rf8 {[%clk 0:03:24.7]} 29. Bc4 {[%clk 0:03:16.6]} 29... Rfe8
{[%clk 0:03:19.9]} 30. b5 {[%clk 0:03:06.7]} 30... Rf8 {[%clk 0:03:13]} 31. a4
{[%clk 0:03:04.7]} 31... Ne6 {[%clk 0:02:59.4]} 32. Rxe4 {[%clk 0:02:45.4]}
32... Rfe8 {[%clk 0:02:50]} 33. Bxe6 {[%clk 0:02:41.8]} 33... Rxe6 {[%clk
0:02:47.7]} 34. Rxe6 {[%clk 0:02:40.9]} 34... Rxe6 {[%clk 0:02:47.6]} 35. Rf3
{[%clk 0:02:40]} 35... cxb5 {[%clk 0:02:42.6]} 36. axb5 {[%clk 0:02:38.7]} 36...
Rg6 {[%clk 0:02:25.7]} 37. Rf4 {[%clk 0:02:32.2]} 37... Re6 {[%clk 0:02:24]} 38.
e4 {[%clk 0:02:30.3]} 38... g5 {[%clk 0:02:22.3]} 39. Rf6 {[%clk 0:02:27.3]}
39... Rxf6 {[%clk 0:02:20.2]} 0-1

[Event "Live Chess"]
[Site "Chess.com"]
[Date "2023.05.21"]
[Round "-"]
[White "Crowded_House"]
[Black "Dhaydon19"]
[Result "0-1"]
[WhiteElo "1644"]
[BlackElo "2701"]
[TimeControl "300"]
[EndTime "4:45:08 PDT"]
[Termination "Dhaydon19 won by checkmate"]

1. d4 {[%clk 0:04:59.3]} 1... c6 {[%clk 0:04:58.3]} 2. Nf3 {[%clk 0:04:55]} 2...
d5 {[%clk 0:04:57.9]} 3. Bg5 {[%clk 0:04:54.2]} 3... Nf6 {[%clk 0:04:56.9]} 4.
Nbd2 {[%clk 0:04:51.3]} 4... Bf5 {[%clk 0:04:55.7]} 5. e3 {[%clk 0:04:49]} 5...
e6 {[%clk 0:04:55]} 6. c3 {[%clk 0:04:48.1]} 6... Be7 {[%clk 0:04:54]} 7. Nb3
{[%clk 0:04:46.2]} 7... Nbd7 {[%clk 0:04:53]} 8. Bd3 {[%clk 0:04:45.3]} 8... Ne4
{[%clk 0:04:50.9]} 9. Bxe7 {[%clk 0:04:41.2]} 9... Qxe7 {[%clk 0:04:50]} 10. Qc2
{[%clk 0:04:31.3]} 10... O-O {[%clk 0:04:47.9]} 11. O-O {[%clk 0:04:29.4]} 11...
Rac8 {[%clk 0:04:45.3]} 12. Nbd2 {[%clk 0:04:27.9]} 12... Nxd2 {[%clk
0:04:40.9]} 13. Qxd2 {[%clk 0:04:26.9]} 13... Bg6 {[%clk 0:04:36]} 14. Bxg6
{[%clk 0:04:24.2]} 14... fxg6 {[%clk 0:04:33.4]} 15. h3 {[%clk 0:04:17.1]} 15...
Rxf3 {[%clk 0:04:31.7]} 16. gxf3 {[%clk 0:04:15.4]} 16... Qg5+ {[%clk
0:04:31.4]} 17. Kh2 {[%clk 0:04:05.1]} 17... Rf8 {[%clk 0:04:28.4]} 18. f4
{[%clk 0:03:56.1]} 18... Qh5 {[%clk 0:04:26.8]} 19. Qd1 {[%clk 0:03:52.9]} 19...
Qf5 {[%clk 0:04:23]} 20. Qg4 {[%clk 0:03:38.3]} 20... Qf7 {[%clk 0:04:21.3]} 21.
Qg5 {[%clk 0:03:20.4]} 21... Nf6 {[%clk 0:04:19.1]} 22. f3 {[%clk 0:03:08.4]}
22... Ne8 {[%clk 0:04:13.7]} 23. Rg1 {[%clk 0:02:59.2]} 23... Nd6 {[%clk
0:04:11.6]} 24. b3 {[%clk 0:02:55.4]} 24... Qd7 {[%clk 0:04:06.1]} 25. Qh4
{[%clk 0:02:34.8]} 25... Nf5 {[%clk 0:04:04.7]} 26. Qf2 {[%clk 0:02:31.9]} 26...
Qd6 {[%clk 0:04:02.9]} 27. Rg5 {[%clk 0:02:28.6]} 27... Rf6 {[%clk 0:04:00.9]}
28. Rag1 {[%clk 0:02:07.7]} 28... Kf7 {[%clk 0:03:55.2]} 29. h4 {[%clk
0:01:56.1]} 29... Ne7 {[%clk 0:03:50.7]} 30. h5 {[%clk 0:01:48.4]} 30... Kf8
{[%clk 0:03:45.2]} 31. hxg6 {[%clk 0:01:44.3]} 31... hxg6 {[%clk 0:03:41.2]} 32.
Qh4 {[%clk 0:01:38.7]} 32... Kg8 {[%clk 0:03:38.1]} 33. Kh1 {[%clk 0:01:29.6]}
33... Nf5 {[%clk 0:03:34.9]} 34. Qf2 {[%clk 0:01:24.2]} 34... Ne7 {[%clk
0:03:33.5]} 35. R1g2 {[%clk 0:01:21.2]} 35... c5 {[%clk 0:03:29]} 36. Rh2 {[%clk
0:01:18.4]} 36... cxd4 {[%clk 0:03:26.3]} 37. cxd4 {[%clk 0:01:15.5]} 37... Kf7
{[%clk 0:03:23.4]} 38. Qc2 {[%clk 0:01:11.2]} 38... Qa6 {[%clk 0:03:19.2]} 39.
Rgg2 {[%clk 0:01:06.6]} 39... Qf1+ {[%clk 0:03:16.2]} 40. Rg1 {[%clk 0:01:06.1]}
40... Qxf3+ {[%clk 0:03:15.6]} 41. Rgg2 {[%clk 0:00:58.6]} 41... Qxe3 {[%clk
0:03:14]} 42. Qd2 {[%clk 0:00:54.4]} 42... Qe4 {[%clk 0:03:08.3]} 43. Rh7 {[%clk
0:00:34.7]} 43... Rxf4 {[%clk 0:02:58.8]} 44. Kh2 {[%clk 0:00:27.4]} 44... Nf5
{[%clk 0:02:53.6]} 45. Rf2 {[%clk 0:00:23.9]} 45... Rh4+ {[%clk 0:02:49.9]} 46.
Kg1 {[%clk 0:00:19.4]} 46... Rxh7 {[%clk 0:02:48]} 47. Qf4 {[%clk 0:00:13.1]}
47... Rh1# {[%clk 0:02:46]} 0-1

[Event "Live Chess"]
[Site "Chess.com"]
[Date "2023.05.21"]
[Round "-"]
[White "luckywookie"]
[Black "yeetpizza74"]
[Result "1-0"]
[WhiteElo "772"]
[BlackElo "498"]
[TimeControl "300"]
[EndTime "4:45:11 PDT"]
[Termination "luckywookie won by checkmate"]

1. e4 {[%clk 0:04:57.2]} 1... c6 {[%clk 0:04:57.4]} 2. Nf3 {[%clk 0:04:55]} 2...
d5 {[%clk 0:04:45.9]} 3. exd5 {[%clk 0:04:43.6]} 3... cxd5 {[%clk 0:04:40.2]} 4.
d4 {[%clk 0:04:42.1]} 4... Nc6 {[%clk 0:04:36]} 5. Bb5 {[%clk 0:04:40]} 5... Bd7
{[%clk 0:04:34.6]} 6. Nc3 {[%clk 0:04:37.7]} 6... Nf6 {[%clk 0:04:31.8]} 7. O-O
{[%clk 0:04:28.8]} 7... e6 {[%clk 0:04:30.4]} 8. Bg5 {[%clk 0:04:18.9]} 8... Be7
{[%clk 0:04:27.9]} 9. h4 {[%clk 0:04:02]} 9... O-O {[%clk 0:04:18.4]} 10. Bxf6
{[%clk 0:04:00.9]} 10... Bxf6 {[%clk 0:04:14.7]} 11. Bd3 {[%clk 0:03:58.9]}
11... Nxd4 {[%clk 0:04:06.1]} 12. Bxh7+ {[%clk 0:03:51.5]} 12... Kxh7 {[%clk
0:03:59.6]} 13. Ng5+ {[%clk 0:03:50.2]} 13... Bxg5 {[%clk 0:03:56.7]} 14. hxg5
{[%clk 0:03:49.4]} 14... Nf5 {[%clk 0:03:44.3]} 15. Qh5+ {[%clk 0:03:46]} 15...
Kg8 {[%clk 0:03:39.5]} 16. g6 {[%clk 0:03:43.1]} 16... fxg6 {[%clk 0:03:34.4]}
17. Qxg6 {[%clk 0:03:40.9]} 17... Ne7 {[%clk 0:03:29.9]} 18. Qg3 {[%clk
0:03:29.8]} 18... d4 {[%clk 0:03:26]} 19. Ne4 {[%clk 0:03:27.3]} 19... Nf5
{[%clk 0:03:19.2]} 20. Qh3 {[%clk 0:03:19.1]} 20... Kf7 {[%clk 0:03:14]} 21. f4
{[%clk 0:03:08.9]} 21... Rh8 {[%clk 0:03:10.4]} 22. Ng5+ {[%clk 0:03:01.8]}
22... Kf6 {[%clk 0:03:04.2]} 23. Qd3 {[%clk 0:02:46.5]} 23... e5 {[%clk
0:02:51.2]} 24. Ne4+ {[%clk 0:02:38.4]} 24... Ke6 {[%clk 0:02:47.1]} 25. Qc4+
{[%clk 0:02:31.7]} 25... Ke7 {[%clk 0:02:44]} 26. Qc5+ {[%clk 0:02:19.3]} 26...
Kf7 {[%clk 0:02:38.3]} 27. fxe5 {[%clk 0:02:05]} 27... Rc8 {[%clk 0:02:26.6]}
28. Nd6+ {[%clk 0:01:48.5]} 28... Ke6 {[%clk 0:02:08.1]} 29. Nxc8 {[%clk
0:01:43.9]} 29... Qh4 {[%clk 0:02:03.5]} 30. Qc4+ {[%clk 0:01:24.2]} 30... Kxe5
{[%clk 0:01:57.1]} 31. Rae1+ {[%clk 0:01:20]} 31... Ne3 {[%clk 0:01:54.5]} 32.
Qc5+ {[%clk 0:01:10.2]} 32... Ke4 {[%clk 0:01:49.8]} 33. Nd6# {[%clk 0:00:47]}
1-0

[Event "Live Chess"]
[Site "Chess.com"]
[Date "2023.05.21"]
[Round "-"]
[White "viktorskliarov"]
[Black "tpm07"]
[Result "1-0"]
[WhiteElo "2654"]
[BlackElo "1927"]
[TimeControl "300"]
[EndTime "4:45:16 PDT"]
[Termination "viktorskliarov won by resignation"]

1. e4 {[%clk 0:04:57.6]} 1... e5 {[%clk 0:04:57.5]} 2. Nc3 {[%clk 0:04:55.2]}
2... Nf6 {[%clk 0:04:56]} 3. Bc4 {[%clk 0:04:53.5]} 3... Nxe4 {[%clk 0:04:53.8]}
4. Qh5 {[%clk 0:04:51.7]} 4... Nd6 {[%clk 0:04:52.6]} 5. Bb3 {[%clk 0:04:51.1]}
5... Nc6 {[%clk 0:04:45.9]} 6. Nb5 {[%clk 0:04:49.8]} 6... g6 {[%clk 0:04:42.4]}
7. Qf3 {[%clk 0:04:48.4]} 7... f5 {[%clk 0:04:33.9]} 8. Qd5 {[%clk 0:04:47.2]}
8... Qf6 {[%clk 0:04:06.2]} 9. Nxc7+ {[%clk 0:04:45.8]} 9... Kd8 {[%clk
0:04:04.6]} 10. Nxa8 {[%clk 0:04:45.7]} 10... Bg7 {[%clk 0:03:32.4]} 11. h4
{[%clk 0:04:39.4]} 1-0

[Event "Live Chess"]
[Site "Chess.com"]
[Date "2023.05.21"]
[Round "-"]
[White "WelshTiger"]
[Black "MarkLim1"]
[Result "1-0"]
[WhiteElo "2310"]
[BlackElo "1678"]
[TimeControl "300"]
[EndTime "4:45:27 PDT"]
[Termination "WelshTiger won by resignation"]

1. e4 {[%clk 0:04:55]} 1... e6 {[%clk 0:04:59.2]} 2. d4 {[%clk 0:04:53.3]} 2...
d5 {[%clk 0:04:58.7]} 3. Nd2 {[%clk 0:04:51.8]} 3... c5 {[%clk 0:04:57.7]} 4.
exd5 {[%clk 0:04:46.5]} 4... Qxd5 {[%clk 0:04:57.6]} 5. dxc5 {[%clk 0:04:44.7]}
5... Qxc5 {[%clk 0:04:56.1]} 6. Ngf3 {[%clk 0:04:42.9]} 6... Nf6 {[%clk
0:04:55.5]} 7. Bd3 {[%clk 0:04:41.1]} 7... Nbd7 {[%clk 0:04:54.5]} 8. O-O {[%clk
0:04:40.4]} 8... Be7 {[%clk 0:04:53.8]} 9. Qe2 {[%clk 0:04:39.9]} 9... O-O
{[%clk 0:04:52.5]} 10. c3 {[%clk 0:04:38.8]} 10... b6 {[%clk 0:04:51.5]} 11. Ne4
{[%clk 0:04:38.3]} 11... Bb7 {[%clk 0:04:49.4]} 12. Nxc5 {[%clk 0:04:36.1]} 1-0

[Event "Live Chess"]
[Site "Chess.com"]
[Date "2023.05.21"]
[Round "-"]
[White "worldchessleaguelive"]
[Black "Brooms1989"]
[Result "1/2-1/2"]
[WhiteElo "1359"]
[BlackElo "1137"]
[TimeControl "300"]
[EndTime "4:45:32 PDT"]
[Termination "Game drawn by agreement"]

1. d4 {[%clk 0:04:58.6]} 1... Nf6 {[%clk 0:04:58.2]} 2. Bf4 {[%clk 0:04:55.7]}
2... g6 {[%clk 0:04:54.2]} 3. Nf3 {[%clk 0:04:54.1]} 3... Bg7 {[%clk 0:04:52.7]}
4. e3 {[%clk 0:04:53.3]} 4... O-O {[%clk 0:04:50]} 5. Nbd2 {[%clk 0:04:49]} 5...
d6 {[%clk 0:04:44.8]} 6. Be2 {[%clk 0:04:46.9]} 6... Bg4 {[%clk 0:04:43.2]} 7.
h3 {[%clk 0:04:41.9]} 7... Bxf3 {[%clk 0:04:41.8]} 8. Bxf3 {[%clk 0:04:39.9]}
8... c6 {[%clk 0:04:41.4]} 9. O-O {[%clk 0:04:38]} 9... Nbd7 {[%clk 0:04:39]}
10. Rc1 {[%clk 0:04:32.7]} 10... Qb6 {[%clk 0:04:37.1]} 11. b3 {[%clk
0:04:28.8]} 11... e5 {[%clk 0:04:23.3]} 12. dxe5 {[%clk 0:04:26.1]} 12... dxe5
{[%clk 0:04:23.2]} 13. Bg5 {[%clk 0:04:25]} 13... h6 {[%clk 0:04:17.5]} 14. Bxf6
{[%clk 0:04:21.3]} 14... Bxf6 {[%clk 0:04:17.4]} 15. c4 {[%clk 0:04:19.9]} 15...
Rad8 {[%clk 0:04:10.7]} 16. Qc2 {[%clk 0:04:19]} 16... Bg7 {[%clk 0:04:03]} 17.
Ne4 {[%clk 0:04:14.8]} 17... Nf6 {[%clk 0:03:57.2]} 18. Rfd1 {[%clk 0:04:07.9]}
18... Nxe4 {[%clk 0:03:50]} 19. Qxe4 {[%clk 0:04:04.3]} 19... Rxd1+ {[%clk
0:03:46]} 20. Rxd1 {[%clk 0:04:01.4]} 20... Rd8 {[%clk 0:03:45.4]} 21. Rxd8+
{[%clk 0:03:56.4]} 21... Qxd8 {[%clk 0:03:45.3]} 22. Qc2 {[%clk 0:03:42.3]}
22... f5 {[%clk 0:03:34.4]} 23. e4 {[%clk 0:03:33.1]} 23... f4 {[%clk
0:03:30.5]} 24. Bg4 {[%clk 0:03:25]} 24... h5 {[%clk 0:03:26.2]} 25. Be2 {[%clk
0:03:19.9]} 25... Kh7 {[%clk 0:03:09.1]} 26. Kf1 {[%clk 0:03:14.1]} 26... Kh6
{[%clk 0:03:07.2]} 27. Qd1 {[%clk 0:03:01.6]} 27... Qxd1+ {[%clk 0:02:59.6]} 28.
Bxd1 {[%clk 0:03:01.2]} 28... g5 {[%clk 0:02:59.1]} 29. Ke2 {[%clk 0:03:00.2]}
29... g4 {[%clk 0:02:57.4]} 30. h4 {[%clk 0:02:52.1]} 30... Bf6 {[%clk
0:02:52.4]} 31. g3 {[%clk 0:02:50.4]} 31... f3+ {[%clk 0:02:48.8]} 32. Kd3
{[%clk 0:02:46.4]} 32... Be7 {[%clk 0:02:44.1]} 1/2-1/2

[Event "Live Chess"]
[Site "Chess.com"]
[Date "2023.05.21"]
[Round "-"]
[White "stevefairhurst"]
[Black "ViktorTheCoolBoy"]
[Result "0-1"]
[WhiteElo "585"]
[BlackElo "2477"]
[TimeControl "300"]
[EndTime "4:45:40 PDT"]
[Termination "ViktorTheCoolBoy won by checkmate"]

1. e4 {[%clk 0:04:57.8]} 1... e5 {[%clk 0:04:59.3]} 2. Nf3 {[%clk 0:04:56.3]}
2... Nf6 {[%clk 0:04:58.7]} 3. Qe2 {[%clk 0:04:54.8]} 3... Nc6 {[%clk 0:04:57]}
4. g3 {[%clk 0:04:54]} 4... Bc5 {[%clk 0:04:55.1]} 5. Bg2 {[%clk 0:04:50.6]}
5... O-O {[%clk 0:04:54]} 6. O-O {[%clk 0:04:49.4]} 6... Re8 {[%clk 0:04:52.7]}
7. d3 {[%clk 0:04:47.3]} 7... h6 {[%clk 0:04:51]} 8. Be3 {[%clk 0:04:44.8]} 8...
Qe7 {[%clk 0:04:46.9]} 9. Bd2 {[%clk 0:04:40.6]} 9... d5 {[%clk 0:04:44.2]} 10.
exd5 {[%clk 0:04:37.1]} 10... Nxd5 {[%clk 0:04:42.1]} 11. Nc3 {[%clk 0:04:34.6]}
11... Ndb4 {[%clk 0:04:35.2]} 12. Nxe5 {[%clk 0:04:26.1]} 12... Nxe5 {[%clk
0:04:31]} 13. Rfe1 {[%clk 0:04:24.5]} 13... Bg4 {[%clk 0:04:25.5]} 14. Qe3
{[%clk 0:03:57.2]} 14... Bxe3 {[%clk 0:04:23.3]} 15. fxe3 {[%clk 0:03:55.5]}
15... Nxc2 {[%clk 0:04:20.3]} 16. Rf1 {[%clk 0:03:52.9]} 16... Nxa1 {[%clk
0:04:18.5]} 17. Nd5 {[%clk 0:03:51.1]} 17... Qd6 {[%clk 0:04:14.3]} 18. Nf6+
{[%clk 0:03:46.1]} 18... gxf6 {[%clk 0:04:12.3]} 19. d4 {[%clk 0:03:41.7]} 19...
Nc2 {[%clk 0:04:06.7]} 20. dxe5 {[%clk 0:03:39.3]} 20... Qxd2 {[%clk 0:04:05.2]}
21. exf6 {[%clk 0:03:35.3]} 21... Nxe3 {[%clk 0:04:02.7]} 22. Rf4 {[%clk
0:03:31.7]} 22... Qxg2# {[%clk 0:04:00.3]} 0-1

[Event "Live Chess"]
[Site "Chess.com"]
[Date "2023.05.21"]
[Round "-"]
[White "lord_cll"]
[Black "Tiltador"]
[Result "1-0"]
[WhiteElo "1198"]
[BlackElo "804"]
[TimeControl "300"]
[EndTime "4:45:49 PDT"]
[Termination "lord_cll won on time"]

1. e4 {[%clk 0:04:58.5]} 1... d5 {[%clk 0:04:58.4]} 2. exd5 {[%clk 0:04:57.2]}
2... Qxd5 {[%clk 0:04:57]} 3. Nc3 {[%clk 0:04:56.9]} 3... Qe6+ {[%clk
0:04:55.5]} 4. Be2 {[%clk 0:04:54.6]} 4... Nc6 {[%clk 0:04:54]} 5. Nf3 {[%clk
0:04:53.2]} 5... Bd7 {[%clk 0:04:52.7]} 6. O-O {[%clk 0:04:45.5]} 6... Nf6
{[%clk 0:04:51.3]} 7. b3 {[%clk 0:04:34.9]} 7... g6 {[%clk 0:04:50]} 8. Bc4
{[%clk 0:04:24.8]} 8... Qd6 {[%clk 0:04:44.1]} 9. Bb2 {[%clk 0:04:22]} 9... Be6
{[%clk 0:04:41.7]} 10. Bb5 {[%clk 0:04:08.9]} 10... Bg7 {[%clk 0:04:38.3]} 11.
Rb1 {[%clk 0:04:04.5]} 11... O-O {[%clk 0:04:36.3]} 12. Re1 {[%clk 0:03:58.6]}
12... a6 {[%clk 0:04:33.8]} 13. Be2 {[%clk 0:03:26.5]} 13... b5 {[%clk 0:04:21]}
14. Ng5 {[%clk 0:03:23.1]} 14... b4 {[%clk 0:04:13.2]} 15. Nxe6 {[%clk
0:03:20.6]} 15... Qxe6 {[%clk 0:04:02.3]} 16. Bf3 {[%clk 0:03:13]} 16... Qd6
{[%clk 0:03:53.1]} 17. Ne4 {[%clk 0:02:54.1]} 17... Nxe4 {[%clk 0:03:47.5]} 18.
Bxg7 {[%clk 0:02:51.6]} 18... Kxg7 {[%clk 0:03:42]} 19. Bxe4 {[%clk 0:02:48.6]}
19... f5 {[%clk 0:03:35.3]} 20. Bf3 {[%clk 0:02:35.7]} 20... e5 {[%clk
0:03:31.1]} 21. Bxc6 {[%clk 0:02:23.2]} 21... Qxc6 {[%clk 0:03:25.1]} 22. Rxe5
{[%clk 0:02:20.8]} 22... Qd6 {[%clk 0:03:11.2]} 23. Qe2 {[%clk 0:02:09.1]} 23...
a5 {[%clk 0:02:54.7]} 24. Re1 {[%clk 0:02:04.1]} 24... Rf7 {[%clk 0:02:43.1]}
25. Re6 {[%clk 0:01:57.8]} 25... Qc5 {[%clk 0:02:29.4]} 26. d3 {[%clk 0:01:51]}
26... Raf8 {[%clk 0:02:21]} 27. Re7 {[%clk 0:01:47.8]} 27... Qxe7 {[%clk
0:01:52.1]} 28. Qxe7 {[%clk 0:01:45.3]} 28... Rxe7 {[%clk 0:01:50.1]} 29. Rxe7+
{[%clk 0:01:43.8]} 29... Kh6 {[%clk 0:01:47.2]} 30. Rxc7 {[%clk 0:01:41.3]}
30... Re8 {[%clk 0:01:43.3]} 31. Kf1 {[%clk 0:01:40.6]} 31... Ra8 {[%clk
0:01:39.1]} 32. f4 {[%clk 0:01:38.1]} 32... Ra6 {[%clk 0:01:37]} 33. Ke2 {[%clk
0:01:35.5]} 33... Re6+ {[%clk 0:01:35.4]} 34. Kf3 {[%clk 0:01:34.3]} 34... Re1
{[%clk 0:01:33.3]} 35. Rc5 {[%clk 0:01:29.5]} 35... Rh1 {[%clk 0:01:25.3]} 36.
h3 {[%clk 0:01:27.7]} 36... Rf1+ {[%clk 0:01:23.2]} 37. Ke2 {[%clk 0:01:26.4]}
37... Ra1 {[%clk 0:01:17.9]} 38. Rxa5 {[%clk 0:01:24.4]} 38... Rg1 {[%clk
0:01:08.7]} 39. Kf2 {[%clk 0:01:21.1]} 39... Rc1 {[%clk 0:01:05.6]} 40. Rc5
{[%clk 0:01:18.2]} 40... Ra1 {[%clk 0:01:01.7]} 41. Rc4 {[%clk 0:01:14.9]} 41...
Rxa2 {[%clk 0:00:59.1]} 42. d4 {[%clk 0:01:10.4]} 42... Ra1 {[%clk 0:00:55.1]}
43. Rxb4 {[%clk 0:01:07.7]} 43... Rd1 {[%clk 0:00:53.5]} 44. Rc4 {[%clk
0:01:06.5]} 44... Rd2+ {[%clk 0:00:52.4]} 45. Kf3 {[%clk 0:01:04.5]} 45... Rd1
{[%clk 0:00:46.1]} 46. b4 {[%clk 0:00:59.1]} 46... Rb1 {[%clk 0:00:41.4]} 47. c3
{[%clk 0:00:56.4]} 47... Rd1 {[%clk 0:00:38.3]} 48. Rc5 {[%clk 0:00:52.8]} 48...
Rd3+ {[%clk 0:00:36.6]} 49. Ke2 {[%clk 0:00:50.7]} 49... Rg3 {[%clk 0:00:32.4]}
50. Kf2 {[%clk 0:00:49.4]} 50... Rd3 {[%clk 0:00:30.2]} 51. d5 {[%clk
0:00:46.8]} 51... Rd2+ {[%clk 0:00:28.5]} 52. Kf3 {[%clk 0:00:40.4]} 52... Rd3+
{[%clk 0:00:27.1]} 53. Ke2 {[%clk 0:00:38.5]} 53... Rg3 {[%clk 0:00:23.8]} 54.
Kf2 {[%clk 0:00:37.2]} 54... Rd3 {[%clk 0:00:21.9]} 55. c4 {[%clk 0:00:34.2]}
55... Rd2+ {[%clk 0:00:20.6]} 56. Kf1 {[%clk 0:00:32.5]} 56... Rd1+ {[%clk
0:00:19.3]} 57. Ke2 {[%clk 0:00:31.4]} 57... Rb1 {[%clk 0:00:17.2]} 58. b5
{[%clk 0:00:29.3]} 58... Rb2+ {[%clk 0:00:15.9]} 59. Kf3 {[%clk 0:00:27.8]}
59... Rb3+ {[%clk 0:00:14.3]} 60. Kf2 {[%clk 0:00:24.9]} 60... Rb2+ {[%clk
0:00:13.2]} 61. Kg1 {[%clk 0:00:23.8]} 61... Rb1+ {[%clk 0:00:11.9]} 62. Kh2
{[%clk 0:00:22.8]} 62... Rb4 {[%clk 0:00:09.3]} 63. d6 {[%clk 0:00:21.2]} 63...
Rb2 {[%clk 0:00:06.9]} 64. Rc6 {[%clk 0:00:19.6]} 64... Rd2 {[%clk 0:00:05.6]}
65. c5 {[%clk 0:00:17.9]} 65... Rb2 {[%clk 0:00:01.5]} 66. b6 {[%clk 0:00:16.7]}
1-0

[Event "Live Chess"]
[Site "Chess.com"]
[Date "2023.05.21"]
[Round "-"]
[White "Hacker_2009"]
[Black "JoshMcK"]
[Result "1-0"]
[WhiteElo "1920"]
[BlackElo "1531"]
[TimeControl "300"]
[EndTime "4:45:52 PDT"]
[Termination "Hacker_2009 won by resignation"]

1. d4 {[%clk 0:04:55.4]} 1... Nf6 {[%clk 0:04:57.9]} 2. Nf3 {[%clk 0:04:53.8]}
2... g6 {[%clk 0:04:55]} 3. c4 {[%clk 0:04:52.9]} 3... Bg7 {[%clk 0:04:54.3]} 4.
Nc3 {[%clk 0:04:47.9]} 4... O-O {[%clk 0:04:53.7]} 5. e4 {[%clk 0:04:47.2]} 5...
d6 {[%clk 0:04:52]} 6. Be2 {[%clk 0:04:46.8]} 6... Nbd7 {[%clk 0:04:46.4]} 7.
O-O {[%clk 0:04:45.6]} 7... e5 {[%clk 0:04:40.5]} 8. d5 {[%clk 0:04:40.5]} 8...
Nc5 {[%clk 0:04:39.4]} 9. Qc2 {[%clk 0:04:39.5]} 9... a6 {[%clk 0:04:34.3]} 10.
b4 {[%clk 0:04:38.2]} 10... Ncd7 {[%clk 0:04:32.2]} 11. h3 {[%clk 0:04:35.6]}
11... Re8 {[%clk 0:04:20]} 12. Be3 {[%clk 0:04:31.4]} 12... Nh5 {[%clk
0:04:17.2]} 13. c5 {[%clk 0:04:29.4]} 13... Nf8 {[%clk 0:04:14.2]} 14. a4 {[%clk
0:04:13.5]} 14... f5 {[%clk 0:04:02.3]} 15. Ng5 {[%clk 0:04:10.7]} 15... fxe4
{[%clk 0:03:58]} 16. Ncxe4 {[%clk 0:04:08.8]} 16... Bf5 {[%clk 0:03:55.6]} 17.
Bxh5 {[%clk 0:04:06.9]} 17... gxh5 {[%clk 0:03:53.1]} 18. Qe2 {[%clk 0:03:54.4]}
18... Bg6 {[%clk 0:03:41.4]} 19. Rfd1 {[%clk 0:03:40.5]} 19... Nd7 {[%clk
0:03:38.9]} 20. Ne6 {[%clk 0:03:39]} 20... Nf6 {[%clk 0:03:35.4]} 21. Nxd8
{[%clk 0:03:37.8]} 1-0